[Event "*** Titled Tuesday Blitz"]
[Site "Chess.com"]
[Date "2020.10.20"]
[Round "4"]
[White "ScarpaChess"]
[Black "LubovMarkelova"]
[Result "1-0"]
[WhiteElo "2477"]
[BlackElo "2252"]
[TimeControl "180+1"]
[EndTime "10:43:52 PDT"]
[Termination "ScarpaChess won by resignation"]

1. d4 {[%clk 0:03:00.9]} 1... d5 {[%clk 0:02:59.2]} 2. c4 {[%clk 0:03:01.5]}
2... c6 {[%clk 0:02:59.9]} 3. Nf3 {[%clk 0:03:00.4]} 3... Nf6 {[%clk 0:02:59.4]}
4. e3 {[%clk 0:03:00.6]} 4... Bf5 {[%clk 0:02:58.3]} 5. Nc3 {[%clk 0:03:00.1]}
5... e6 {[%clk 0:02:58.8]} 6. Nh4 {[%clk 0:03:00]} 6... Be4 {[%clk 0:02:58.6]}
7. f3 {[%clk 0:02:59.7]} 7... Bg6 {[%clk 0:02:58.9]} 8. Qb3 {[%clk 0:02:40.2]}
8... Qc7 {[%clk 0:02:58.1]} 9. Bd2 {[%clk 0:02:38.6]} 9... Be7 {[%clk
0:02:56.9]} 10. g3 {[%clk 0:02:37.1]} 10... Nbd7 {[%clk 0:02:54.4]} 11. Rc1
{[%clk 0:02:32.2]} 11... Qb6 {[%clk 0:02:44.8]} 12. Nxg6 {[%clk 0:02:29.2]}
12... hxg6 {[%clk 0:02:43.4]} 13. Qxb6 {[%clk 0:02:19.8]} 13... axb6 {[%clk
0:02:43.2]} 14. a3 {[%clk 0:02:20]} 14... O-O {[%clk 0:02:30.4]} 15. Kf2 {[%clk
0:02:07.8]} 15... Rfe8 {[%clk 0:02:21.5]} 16. cxd5 {[%clk 0:02:07.1]} 16... exd5
{[%clk 0:02:20.2]} 17. Bd3 {[%clk 0:02:07.5]} 17... b5 {[%clk 0:02:15.9]} 18. e4
{[%clk 0:01:50.5]} 18... dxe4 {[%clk 0:02:07.7]} 19. fxe4 {[%clk 0:01:48.5]}
19... Nb6 {[%clk 0:02:04.6]} 20. Na2 {[%clk 0:01:08.2]} 20... Rad8 {[%clk
0:01:51.7]} 21. Ba5 {[%clk 0:01:04.7]} 21... Rxd4 {[%clk 0:01:44.2]} 22. Ke3
{[%clk 0:00:49.3]} 22... Rxd3+ {[%clk 0:01:40.4]} 23. Kxd3 {[%clk 0:00:48.7]}
23... Nc4 {[%clk 0:01:40.7]} 24. Bc3 {[%clk 0:00:45.5]} 24... Bc5 {[%clk
0:01:32.3]} 25. Rhe1 {[%clk 0:00:40.7]} 25... Rd8+ {[%clk 0:01:18.1]} 26. Kc2
{[%clk 0:00:39.8]} 26... Ng4 {[%clk 0:01:00.1]} 27. Nb4 {[%clk 0:00:39.1]} 27...
Nge3+ {[%clk 0:00:56.6]} 28. Kb1 {[%clk 0:00:38.8]} 28... Bb6 {[%clk 0:00:49.1]}
29. Nc2 {[%clk 0:00:36.8]} 29... Ng4 {[%clk 0:00:43.9]} 30. Re2 {[%clk
0:00:27.5]} 30... Nge5 {[%clk 0:00:37.9]} 31. Bxe5 {[%clk 0:00:22.4]} 31... Nxe5
{[%clk 0:00:37.7]} 32. Rf1 {[%clk 0:00:20.5]} 32... Nc4 {[%clk 0:00:25]} 33. Ka1
{[%clk 0:00:13.6]} 33... Nd2 {[%clk 0:00:22.4]} 34. Rh1 {[%clk 0:00:11.9]} 34...
Nb3+ {[%clk 0:00:20.4]} 35. Ka2 {[%clk 0:00:12.4]} 35... Rd3 {[%clk 0:00:18.7]}
36. Rf1 {[%clk 0:00:09.7]} 36... Nc5 {[%clk 0:00:15.1]} 37. Nb4 {[%clk
0:00:09.5]} 37... Rd7 {[%clk 0:00:13.6]} 38. Ree1 {[%clk 0:00:08.1]} 38... Ne6
{[%clk 0:00:13.7]} 39. Rd1 {[%clk 0:00:08.4]} 39... Nd4 {[%clk 0:00:13.4]} 40.
Kb1 {[%clk 0:00:07.9]} 40... c5 {[%clk 0:00:13.4]} 41. Nd3 {[%clk 0:00:08.1]}
41... c4 {[%clk 0:00:13.1]} 42. Nf4 {[%clk 0:00:08.7]} 42... g5 {[%clk
0:00:12.7]} 43. Nd5 {[%clk 0:00:09.1]} 43... Bc5 {[%clk 0:00:13]} 44. Rd2 {[%clk
0:00:07.5]} 44... Nb3 {[%clk 0:00:13.2]} 45. Rdf2 {[%clk 0:00:07.5]} 45... Bxf2
{[%clk 0:00:11.4]} 46. Rxf2 {[%clk 0:00:08.1]} 46... Nd4 {[%clk 0:00:11.6]} 47.
Rd2 {[%clk 0:00:07.9]} 47... Nf3 {[%clk 0:00:11.6]} 48. Rf2 {[%clk 0:00:07.9]}
48... g4 {[%clk 0:00:12.1]} 49. h3 {[%clk 0:00:08.3]} 49... Ne5 {[%clk
0:00:10.8]} 50. hxg4 {[%clk 0:00:08.5]} 50... Nxg4 {[%clk 0:00:11.4]} 51. Rd2
{[%clk 0:00:08.4]} 51... Kf8 {[%clk 0:00:10.4]} 52. Kc2 {[%clk 0:00:08.6]} 52...
Ne5 {[%clk 0:00:09.4]} 53. Kc3 {[%clk 0:00:08.9]} 53... Nc6 {[%clk 0:00:09.1]}
54. Rh2 {[%clk 0:00:07.4]} 54... Ne7 {[%clk 0:00:09.1]} 55. Rh8+ {[%clk
0:00:07.1]} 55... Ng8 {[%clk 0:00:09.8]} 56. Kb4 {[%clk 0:00:07.2]} 56... f6
{[%clk 0:00:10.1]} 57. Kxb5 {[%clk 0:00:07.3]} 57... Kf7 {[%clk 0:00:10.5]} 58.
Kxc4 {[%clk 0:00:07.5]} 58... Nh6 {[%clk 0:00:10.8]} 59. Rb8 {[%clk 0:00:06.3]}
59... f5 {[%clk 0:00:08.6]} 60. exf5 {[%clk 0:00:05.9]} 60... Nxf5 {[%clk
0:00:08.7]} 61. Nf4 {[%clk 0:00:04.9]} 61... Rd4+ {[%clk 0:00:07.2]} 62. Kb5
{[%clk 0:00:04.8]} 62... Rd7 {[%clk 0:00:07.2]} 63. Kb6 {[%clk 0:00:04.8]} 63...
Nd6 {[%clk 0:00:07.5]} 64. b4 {[%clk 0:00:03.4]} 64... g5 {[%clk 0:00:07.4]} 65.
Nh3 {[%clk 0:00:01.8]} 65... Kg6 {[%clk 0:00:06.8]} 66. Nf2 {[%clk 0:00:02.6]}
66... Kf5 {[%clk 0:00:06.9]} 67. Nd1 {[%clk 0:00:03]} 67... Nc4+ {[%clk
0:00:06.6]} 68. Kc5 {[%clk 0:00:03.2]} 68... Rxd1 {[%clk 0:00:06.2]} 69. Kxc4
{[%clk 0:00:03.5]} 69... Rc1+ {[%clk 0:00:07]} 70. Kb5 {[%clk 0:00:03.5]} 70...
Rc3 {[%clk 0:00:07.2]} 71. a4 {[%clk 0:00:03.9]} 71... Rxg3 {[%clk 0:00:07.3]}
72. Rxb7 {[%clk 0:00:04.4]} 72... Rc3 {[%clk 0:00:07.5]} 73. a5 {[%clk
0:00:04.8]} 73... g4 {[%clk 0:00:07.7]} 74. Rg7 {[%clk 0:00:05.3]} 74... Kf4
{[%clk 0:00:07.3]} 75. Kb6 {[%clk 0:00:05.7]} 75... Ra3 {[%clk 0:00:07.4]} 76.
b5 {[%clk 0:00:06]} 76... Kf3 {[%clk 0:00:07.3]} 77. a6 {[%clk 0:00:06.2]} 77...
g3 {[%clk 0:00:08]} 78. Kb7 {[%clk 0:00:06.5]} 78... g2 {[%clk 0:00:08.3]} 79.
b6 {[%clk 0:00:06]} 79... Kf2 {[%clk 0:00:07.8]} 80. Rxg2+ {[%clk 0:00:06]}
80... Kxg2 {[%clk 0:00:07.5]} 81. a7 {[%clk 0:00:06.6]} 81... Kf3 {[%clk
0:00:06.3]} 82. a8=Q {[%clk 0:00:07]} 82... Rxa8 {[%clk 0:00:06.9]} 83. Kxa8
{[%clk 0:00:07.7]} 83... Ke4 {[%clk 0:00:07.8]} 84. b7 {[%clk 0:00:08.4]} 84...
Kd5 {[%clk 0:00:08.7]} 85. b8=Q {[%clk 0:00:08.9]} 85... Kc6 {[%clk 0:00:09.6]}
86. Qb7+ {[%clk 0:00:09.1]} 86... Kc5 {[%clk 0:00:10.5]} 87. Kb8 {[%clk
0:00:10]} 87... Kc4 {[%clk 0:00:11.4]} 88. Kc8 {[%clk 0:00:10.7]} 88... Kc3
{[%clk 0:00:12.3]} 89. Qb5 {[%clk 0:00:10.8]} 89... Kc2 {[%clk 0:00:12.3]} 90.
Qb4 {[%clk 0:00:10.9]} 90... Kd3 {[%clk 0:00:11.8]} 91. Qc5 {[%clk 0:00:10.6]}
91... Ke2 {[%clk 0:00:12.5]} 92. Qd4 {[%clk 0:00:10.6]} 92... Kf3 {[%clk
0:00:13.4]} 93. Qe5 {[%clk 0:00:10.7]} 93... Kg2 {[%clk 0:00:14.2]} 94. Qf4
{[%clk 0:00:10.8]} 94... Kh1 {[%clk 0:00:14.7]} 95. Qg5 {[%clk 0:00:10.4]} 95...
Kh2 {[%clk 0:00:14.7]} 96. Kd7 {[%clk 0:00:11.1]} 96... Kh1 {[%clk 0:00:15.6]}
97. Ke6 {[%clk 0:00:11.8]} 97... Kh2 {[%clk 0:00:16.5]} 98. Ke5 {[%clk
0:00:12.7]} 1-0

[Event "*** Titled Tuesday Blitz"]
[Site "Chess.com"]
[Date "2020.10.20"]
[Round "5"]
[White "TurboSteen"]
[Black "SerLanselot"]
[Result "0-1"]
[WhiteElo "2033"]
[BlackElo "2225"]
[TimeControl "180+1"]
[EndTime "10:52:27 PDT"]
[Termination "SerLanselot won by resignation"]

1. e4 {[%clk 0:03:00.9]} 1... d6 {[%clk 0:02:59.7]} 2. d4 {[%clk 0:02:59.2]}
2... g6 {[%clk 0:02:59.3]} 3. Nc3 {[%clk 0:02:59.1]} 3... Nf6 {[%clk 0:02:59.7]}
4. Be3 {[%clk 0:02:57.6]} 4... Bg7 {[%clk 0:03:00.1]} 5. Qd2 {[%clk 0:02:56.4]}
5... c6 {[%clk 0:02:59.9]} 6. O-O-O {[%clk 0:02:50.5]} 6... Nbd7 {[%clk
0:02:59.8]} 7. Bh6 {[%clk 0:02:48.6]} 7... Bxh6 {[%clk 0:02:59.6]} 8. Qxh6
{[%clk 0:02:46.9]} 8... Qa5 {[%clk 0:03:00]} 9. Kb1 {[%clk 0:02:41.5]} 9... b5
{[%clk 0:03:00.1]} 10. Bd3 {[%clk 0:02:36.7]} 10... b4 {[%clk 0:03:00]} 11. Nce2
{[%clk 0:02:35.1]} 11... Rb8 {[%clk 0:02:59.7]} 12. f4 {[%clk 0:02:31.7]} 12...
Nb6 {[%clk 0:02:59.2]} 13. e5 {[%clk 0:02:30]} 13... dxe5 {[%clk 0:02:57.5]} 14.
dxe5 {[%clk 0:02:28]} 14... Nfd5 {[%clk 0:02:57.7]} 15. Qg7 {[%clk 0:02:20.4]}
15... Rf8 {[%clk 0:02:56.4]} 16. Qxh7 {[%clk 0:02:19.2]} 16... Na4 {[%clk
0:02:51.7]} 17. Bc4 {[%clk 0:02:06]} 17... Nac3+ {[%clk 0:02:43.1]} 18. bxc3
{[%clk 0:02:04]} 18... bxc3+ {[%clk 0:02:43.1]} 19. Bb3 {[%clk 0:02:03]} 19...
Qa3 {[%clk 0:02:39.6]} 20. Nxc3 {[%clk 0:01:57.2]} 20... Nxc3+ {[%clk
0:02:39.2]} 21. Ka1 {[%clk 0:01:57.6]} 21... Rxb3 {[%clk 0:02:35]} 0-1

[Event "*** Titled Tuesday Blitz"]
[Site "Chess.com"]
[Date "2020.10.20"]
[Round "5"]
[White "annamaja"]
[Black "BigAl"]
[Result "0-1"]
[WhiteElo "2288"]
[BlackElo "2467"]
[TimeControl "180+1"]
[EndTime "10:52:35 PDT"]
[Termination "BigAl won by resignation"]

1. e4 {[%clk 0:03:00.9]} 1... c6 {[%clk 0:02:56.8]} 2. d4 {[%clk 0:02:58.5]}
2... d5 {[%clk 0:02:57.4]} 3. exd5 {[%clk 0:02:53.5]} 3... cxd5 {[%clk
0:02:57.2]} 4. Nf3 {[%clk 0:02:53.7]} 4... Nc6 {[%clk 0:02:54.2]} 5. Bd3 {[%clk
0:02:52.9]} 5... Bg4 {[%clk 0:02:54.1]} 6. c3 {[%clk 0:02:53]} 6... e6 {[%clk
0:02:54.6]} 7. O-O {[%clk 0:02:51.2]} 7... Bd6 {[%clk 0:02:55.2]} 8. h3 {[%clk
0:02:51.3]} 8... Bh5 {[%clk 0:02:54.4]} 9. Nbd2 {[%clk 0:02:49.8]} 9... Nge7
{[%clk 0:02:54.9]} 10. Re1 {[%clk 0:02:49.8]} 10... h6 {[%clk 0:02:54.8]} 11.
Nf1 {[%clk 0:02:49]} 11... Qc7 {[%clk 0:02:53]} 12. g4 {[%clk 0:02:46.1]} 12...
Bg6 {[%clk 0:02:51.9]} 13. Bxg6 {[%clk 0:02:43.1]} 13... Nxg6 {[%clk 0:02:51.6]}
14. Ng3 {[%clk 0:02:43.2]} 14... Bxg3 {[%clk 0:02:49.7]} 15. fxg3 {[%clk
0:02:37.9]} 15... Qxg3+ {[%clk 0:02:49.6]} 16. Kh1 {[%clk 0:02:37.6]} 16...
Qxh3+ {[%clk 0:02:47.4]} 17. Nh2 {[%clk 0:02:37.4]} 17... Qg3 {[%clk 0:02:32.4]}
18. Qb3 {[%clk 0:02:13.7]} 18... Qxe1+ {[%clk 0:02:32.4]} 19. Kg2 {[%clk
0:02:05.6]} 19... Qe4+ {[%clk 0:02:20.4]} 20. Kg1 {[%clk 0:02:03.3]} 20... Nh4
{[%clk 0:02:18.7]} 0-1

[Event "*** Titled Tuesday Blitz"]
[Site "Chess.com"]
[Date "2020.10.20"]
[Round "5"]
[White "enriquebutti"]
[Black "Kolle05"]
[Result "0-1"]
[WhiteElo "1999"]
[BlackElo "2299"]
[TimeControl "180+1"]
[EndTime "10:53:11 PDT"]
[Termination "Kolle05 won by resignation"]

1. d4 {[%clk 0:02:59.8]} 1... Nf6 {[%clk 0:02:58.5]} 2. Nf3 {[%clk 0:02:58.7]}
2... g6 {[%clk 0:02:58.2]} 3. c4 {[%clk 0:02:57.9]} 3... Bg7 {[%clk 0:02:58.2]}
4. Nc3 {[%clk 0:02:57.4]} 4... O-O {[%clk 0:02:57.8]} 5. Bg5 {[%clk 0:02:56]}
5... d6 {[%clk 0:02:55.5]} 6. e3 {[%clk 0:02:55.4]} 6... h6 {[%clk 0:02:54.9]}
7. Bh4 {[%clk 0:02:54.6]} 7... Nbd7 {[%clk 0:02:54.1]} 8. Be2 {[%clk 0:02:54]}
8... c5 {[%clk 0:02:49.2]} 9. O-O {[%clk 0:02:52.9]} 9... b6 {[%clk 0:02:48.1]}
10. Qc2 {[%clk 0:02:51.7]} 10... Bb7 {[%clk 0:02:47.2]} 11. Rad1 {[%clk
0:02:50.7]} 11... Rc8 {[%clk 0:02:44.4]} 12. d5 {[%clk 0:02:44.4]} 12... a6
{[%clk 0:02:44.4]} 13. a4 {[%clk 0:02:43.3]} 13... Qc7 {[%clk 0:02:42.1]} 14.
Nd2 {[%clk 0:02:41.5]} 14... Rfe8 {[%clk 0:02:39]} 15. f4 {[%clk 0:02:40.7]}
15... e6 {[%clk 0:02:10.8]} 16. dxe6 {[%clk 0:02:32.8]} 16... Rxe6 {[%clk
0:02:11.7]} 17. f5 {[%clk 0:02:32.3]} 17... Rxe3 {[%clk 0:02:07.5]} 18. fxg6
{[%clk 0:02:28.5]} 18... fxg6 {[%clk 0:01:46.9]} 19. Qxg6 {[%clk 0:02:27.1]}
19... Rf8 {[%clk 0:01:47.3]} 20. Bd3 {[%clk 0:02:22.8]} 20... Ne5 {[%clk
0:01:45]} 0-1

[Event "*** Titled Tuesday Blitz"]
[Site "Chess.com"]
[Date "2020.10.20"]
[Round "5"]
[White "gumimis"]
[Black "niki_2003"]
[Result "1-0"]
[WhiteElo "2287"]
[BlackElo "1836"]
[TimeControl "180+1"]
[EndTime "10:53:44 PDT"]
[Termination "gumimis won by resignation"]

1. e4 {[%clk 0:02:59.5]} 1... c5 {[%clk 0:02:54.8]} 2. Nf3 {[%clk 0:02:59.5]}
2... d6 {[%clk 0:02:54.6]} 3. d4 {[%clk 0:02:59.3]} 3... cxd4 {[%clk 0:02:55.1]}
4. Nxd4 {[%clk 0:03:00.2]} 4... Nf6 {[%clk 0:02:54.9]} 5. Nc3 {[%clk 0:03:00.4]}
5... g6 {[%clk 0:02:55]} 6. Be3 {[%clk 0:02:59.9]} 6... Bg7 {[%clk 0:02:55.3]}
7. f3 {[%clk 0:02:59.1]} 7... Nc6 {[%clk 0:02:55.9]} 8. Qd2 {[%clk 0:02:56.1]}
8... O-O {[%clk 0:02:56]} 9. g4 {[%clk 0:02:56.1]} 9... d5 {[%clk 0:02:45.9]}
10. g5 {[%clk 0:02:52.1]} 10... dxe4 {[%clk 0:02:34.9]} 11. gxf6 {[%clk
0:02:49.1]} 11... Bxf6 {[%clk 0:02:35.1]} 12. O-O-O {[%clk 0:02:28.5]} 12...
exf3 {[%clk 0:02:27.3]} 13. Nxf3 {[%clk 0:02:15.9]} 13... Bg4 {[%clk 0:02:22.6]}
14. Qg2 {[%clk 0:01:57.8]} 14... Bxf3 {[%clk 0:02:13.6]} 15. Rxd8 {[%clk
0:01:44.6]} 15... Bxg2 {[%clk 0:02:08.8]} 16. Rxf8+ {[%clk 0:01:44.9]} 16...
Kxf8 {[%clk 0:02:06.3]} 17. Bxg2 {[%clk 0:01:45.8]} 17... Kg7 {[%clk 0:02:03.4]}
18. Nd5 {[%clk 0:01:41.2]} 18... e6 {[%clk 0:01:59.1]} 19. Nxf6 {[%clk 0:01:40]}
19... Kxf6 {[%clk 0:01:58.6]} 20. Bxc6 {[%clk 0:01:32]} 20... bxc6 {[%clk
0:01:57]} 21. Rd1 {[%clk 0:01:32.6]} 1-0

[Event "*** Titled Tuesday Blitz"]
[Site "Chess.com"]
[Date "2020.10.20"]
[Round "5"]
[White "Playgood28"]
[Black "MoreChessJulia"]
[Result "1-0"]
[WhiteElo "2296"]
[BlackElo "1994"]
[TimeControl "180+1"]
[EndTime "10:53:48 PDT"]
[Termination "Playgood28 won by resignation"]

1. d4 {[%clk 0:03:00.9]} 1... g6 {[%clk 0:02:59.5]} 2. c4 {[%clk 0:02:59.9]}
2... Bg7 {[%clk 0:02:59.3]} 3. Nc3 {[%clk 0:03:00.3]} 3... c5 {[%clk 0:02:59.1]}
4. d5 {[%clk 0:03:00.1]} 4... Bxc3+ {[%clk 0:02:57.9]} 5. bxc3 {[%clk 0:03:01]}
5... f5 {[%clk 0:02:57.6]} 6. h3 {[%clk 0:03:00.2]} 6... d6 {[%clk 0:02:57.3]}
7. Nf3 {[%clk 0:02:59]} 7... Nf6 {[%clk 0:02:53.1]} 8. Bh6 {[%clk 0:02:57.4]}
8... Nbd7 {[%clk 0:02:51.2]} 9. e3 {[%clk 0:02:55.8]} 9... Qa5 {[%clk
0:02:49.3]} 10. Qc2 {[%clk 0:02:54.4]} 10... Ne4 {[%clk 0:02:48.1]} 11. Bd3
{[%clk 0:02:48.6]} 11... Qxc3+ {[%clk 0:02:46.3]} 12. Qxc3 {[%clk 0:02:47.4]}
12... Nxc3 {[%clk 0:02:46]} 13. Bg7 {[%clk 0:02:46.9]} 13... Rg8 {[%clk
0:02:41.3]} 14. Bxc3 {[%clk 0:02:46.2]} 14... b6 {[%clk 0:02:35.8]} 15. O-O
{[%clk 0:02:44.1]} 15... Bb7 {[%clk 0:02:35.8]} 16. Rfe1 {[%clk 0:02:41.9]}
16... O-O-O {[%clk 0:02:34.1]} 17. e4 {[%clk 0:02:41.1]} 17... f4 {[%clk
0:02:33.8]} 18. e5 {[%clk 0:02:39.3]} 18... b5 {[%clk 0:02:32.1]} 19. exd6
{[%clk 0:02:24.5]} 19... exd6 {[%clk 0:02:30.8]} 20. Ng5 {[%clk 0:02:24]} 20...
bxc4 {[%clk 0:02:28.1]} 21. Bxc4 {[%clk 0:02:22.8]} 21... Nb6 {[%clk 0:02:27.8]}
22. Be2 {[%clk 0:02:08.2]} 22... Nxd5 {[%clk 0:02:26.4]} 23. Ba5 {[%clk
0:02:01.2]} 23... Rde8 {[%clk 0:02:20.1]} 24. Rab1 {[%clk 0:01:39]} 24... h6
{[%clk 0:02:15.7]} 25. Nf7 {[%clk 0:01:30.4]} 25... Re6 {[%clk 0:01:57.4]} 26.
Bg4 {[%clk 0:01:28.1]} 1-0

[Event "*** Titled Tuesday Blitz"]
[Site "Chess.com"]
[Date "2020.10.20"]
[Round "5"]
[White "GMTalks_Youtube"]
[Black "Rubinstein_Akiba"]
[Result "1-0"]
[WhiteElo "2615"]
[BlackElo "2381"]
[TimeControl "180+1"]
[EndTime "10:53:54 PDT"]
[Termination "GMTalks_Youtube won by resignation"]

1. e4 {[%clk 0:03:00.9]} 1... c5 {[%clk 0:02:58.8]} 2. Nf3 {[%clk 0:03:00.9]}
2... d6 {[%clk 0:02:58.9]} 3. Bb5+ {[%clk 0:03:00.9]} 3... Bd7 {[%clk
0:02:56.6]} 4. a4 {[%clk 0:03:00.9]} 4... Nf6 {[%clk 0:02:54.9]} 5. d3 {[%clk
0:02:58.3]} 5... e6 {[%clk 0:02:54.1]} 6. O-O {[%clk 0:02:57.5]} 6... Be7 {[%clk
0:02:54.4]} 7. Re1 {[%clk 0:02:57.4]} 7... O-O {[%clk 0:02:54.4]} 8. Nbd2 {[%clk
0:02:56]} 8... a6 {[%clk 0:02:53.7]} 9. Bc4 {[%clk 0:02:47]} 9... Nc6 {[%clk
0:02:53.5]} 10. c3 {[%clk 0:02:44.5]} 10... Rb8 {[%clk 0:02:53.4]} 11. d4 {[%clk
0:02:39.7]} 11... b5 {[%clk 0:02:49.9]} 12. axb5 {[%clk 0:02:34.9]} 12... axb5
{[%clk 0:02:50.8]} 13. Bd3 {[%clk 0:02:35.5]} 13... cxd4 {[%clk 0:02:48.8]} 14.
cxd4 {[%clk 0:02:34.7]} 14... e5 {[%clk 0:02:31]} 15. Nb3 {[%clk 0:02:29.1]}
15... Nb4 {[%clk 0:02:22.5]} 16. Bb1 {[%clk 0:02:23.9]} 16... Nc6 {[%clk
0:02:09.9]} 17. d5 {[%clk 0:02:18]} 17... Nb4 {[%clk 0:01:44.3]} 18. Bd2 {[%clk
0:02:15.7]} 18... Nbxd5 {[%clk 0:01:41.6]} 19. exd5 {[%clk 0:02:14.8]} 19...
Nxd5 {[%clk 0:01:42.5]} 20. Ba5 {[%clk 0:02:13.4]} 20... Nc7 {[%clk 0:01:43.1]}
21. Qc2 {[%clk 0:02:12.1]} 21... Bf5 {[%clk 0:01:04.6]} 22. Qxc7 {[%clk
0:02:04.4]} 1-0

[Event "*** Titled Tuesday Blitz"]
[Site "Chess.com"]
[Date "2020.10.20"]
[Round "5"]
[White "Colombiano07"]
[Black "canary2016"]
[Result "1-0"]
[WhiteElo "2211"]
[BlackElo "1940"]
[TimeControl "180+1"]
[EndTime "10:53:54 PDT"]
[Termination "Colombiano07 won by checkmate"]

1. c4 {[%clk 0:03:00.9]} 1... c6 {[%clk 0:02:59.6]} 2. Nc3 {[%clk 0:02:59.7]}
2... d5 {[%clk 0:02:58.8]} 3. cxd5 {[%clk 0:03:00.6]} 3... cxd5 {[%clk
0:02:58.6]} 4. d4 {[%clk 0:03:00.7]} 4... Nc6 {[%clk 0:02:57.8]} 5. Bf4 {[%clk
0:03:01.3]} 5... Nf6 {[%clk 0:02:57.5]} 6. e3 {[%clk 0:03:01.1]} 6... Bf5 {[%clk
0:02:56.8]} 7. Qb3 {[%clk 0:02:54.9]} 7... Qd7 {[%clk 0:02:51.6]} 8. Nf3 {[%clk
0:02:53.2]} 8... e6 {[%clk 0:02:42.7]} 9. Bb5 {[%clk 0:02:52.2]} 9... Rc8 {[%clk
0:02:29]} 10. Ne5 {[%clk 0:02:51.4]} 10... Qd8 {[%clk 0:02:20.9]} 11. Qa4 {[%clk
0:02:50.1]} 11... Qb6 {[%clk 0:02:10.4]} 12. O-O {[%clk 0:02:45.8]} 12... Bb4
{[%clk 0:02:08.7]} 13. Qxb4 {[%clk 0:02:43.4]} 13... a6 {[%clk 0:01:49]} 14.
Bxc6+ {[%clk 0:02:42.1]} 14... Rxc6 {[%clk 0:01:45]} 15. Qxb6 {[%clk 0:02:41.9]}
15... Rxb6 {[%clk 0:01:45.2]} 16. Na4 {[%clk 0:02:42.8]} 16... Rb4 {[%clk
0:01:44.9]} 17. b3 {[%clk 0:02:42.9]} 17... Ne4 {[%clk 0:01:40.9]} 18. Rac1
{[%clk 0:02:41.4]} 18... O-O {[%clk 0:01:40.2]} 19. Nc5 {[%clk 0:02:41.1]} 19...
Nd2 {[%clk 0:01:35.1]} 20. Rfd1 {[%clk 0:02:40.1]} 20... Ne4 {[%clk 0:01:28.6]}
21. Nxe4 {[%clk 0:02:39.6]} 21... Bxe4 {[%clk 0:01:28.3]} 22. f3 {[%clk
0:02:39.9]} 22... Bf5 {[%clk 0:01:27]} 23. g4 {[%clk 0:02:40.4]} 23... Bg6
{[%clk 0:01:25.5]} 24. h4 {[%clk 0:02:41]} 24... h6 {[%clk 0:01:23.1]} 25. Nxg6
{[%clk 0:02:40]} 25... fxg6 {[%clk 0:01:23.1]} 26. Bd6 {[%clk 0:02:40.2]} 26...
Rxf3 {[%clk 0:01:21]} 27. Bxb4 {[%clk 0:02:39.9]} 27... Rxe3 {[%clk 0:01:21.3]}
28. Bd6 {[%clk 0:02:38.9]} 28... Re4 {[%clk 0:01:19.6]} 29. Be5 {[%clk
0:02:38.6]} 29... Rxg4+ {[%clk 0:01:17.8]} 30. Kf2 {[%clk 0:02:39.5]} 30... Rxh4
{[%clk 0:01:16.1]} 31. Rc7 {[%clk 0:02:40.1]} 31... Re4 {[%clk 0:01:05.3]} 32.
Rxg7+ {[%clk 0:02:39.6]} 32... Kf8 {[%clk 0:01:04.5]} 33. Rxg6 {[%clk
0:02:39.7]} 33... h5 {[%clk 0:01:03.7]} 34. Rxe6 {[%clk 0:02:39.6]} 34... h4
{[%clk 0:01:03.1]} 35. Rh6 {[%clk 0:02:39.3]} 35... Kf7 {[%clk 0:01:00.7]} 36.
Rc1 {[%clk 0:02:38.9]} 36... Rg4 {[%clk 0:00:56.9]} 37. Rc7+ {[%clk 0:02:38.3]}
37... Kg8 {[%clk 0:00:57.1]} 38. Rh8# {[%clk 0:02:38.1]} 1-0

[Event "*** Titled Tuesday Blitz"]
[Site "Chess.com"]
[Date "2020.10.20"]
[Round "5"]
[White "Stalri"]
[Black "Ladislav1969"]
[Result "1-0"]
[WhiteElo "2183"]
[BlackElo "2415"]
[TimeControl "180+1"]
[EndTime "10:53:56 PDT"]
[Termination "Stalri won by resignation"]

1. d4 {[%clk 0:03:00.9]} 1... Nf6 {[%clk 0:02:59.8]} 2. c4 {[%clk 0:03:00.3]}
2... g6 {[%clk 0:03:00.3]} 3. Nc3 {[%clk 0:02:59.7]} 3... d5 {[%clk 0:03:01]} 4.
e3 {[%clk 0:02:57.1]} 4... Bg7 {[%clk 0:03:00.4]} 5. Nf3 {[%clk 0:02:57.5]} 5...
O-O {[%clk 0:02:59.5]} 6. h4 {[%clk 0:02:57.5]} 6... c5 {[%clk 0:02:45.3]} 7. h5
{[%clk 0:02:56.7]} 7... cxd4 {[%clk 0:02:35.8]} 8. exd4 {[%clk 0:02:56.6]} 8...
Bg4 {[%clk 0:02:26.5]} 9. hxg6 {[%clk 0:02:54.6]} 9... hxg6 {[%clk 0:02:24.9]}
10. cxd5 {[%clk 0:02:36.8]} 10... Nxd5 {[%clk 0:02:21]} 11. Bh6 {[%clk
0:02:36.5]} 11... Nxc3 {[%clk 0:02:02.6]} 12. bxc3 {[%clk 0:02:32.7]} 12... Bxh6
{[%clk 0:01:51.7]} 13. Rxh6 {[%clk 0:02:33.6]} 13... Qd5 {[%clk 0:01:41.9]} 14.
Be2 {[%clk 0:02:12]} 14... Nd7 {[%clk 0:01:32.4]} 15. Qd2 {[%clk 0:02:10.9]}
15... Nf6 {[%clk 0:01:28.8]} 16. c4 {[%clk 0:01:46.4]} 16... Qe4 {[%clk
0:01:24.9]} 17. Rh4 {[%clk 0:01:39.3]} 17... Kg7 {[%clk 0:01:16.7]} 18. Qh6+
{[%clk 0:01:37.7]} 1-0

[Event "*** Titled Tuesday Blitz"]
[Site "Chess.com"]
[Date "2020.10.20"]
[Round "5"]
[White "MarceloPlaya"]
[Black "Volodar_Murzin"]
[Result "0-1"]
[WhiteElo "2299"]
[BlackElo "2614"]
[TimeControl "180+1"]
[EndTime "10:54:06 PDT"]
[Termination "Volodar_Murzin won by resignation"]

1. e4 {[%clk 0:02:49.3]} 1... c5 {[%clk 0:02:55.1]} 2. Nf3 {[%clk 0:02:46.3]}
2... d6 {[%clk 0:02:54.4]} 3. d4 {[%clk 0:02:46.3]} 3... cxd4 {[%clk 0:02:53.9]}
4. Nxd4 {[%clk 0:02:46.3]} 4... Nf6 {[%clk 0:02:54.5]} 5. Nc3 {[%clk 0:02:45.4]}
5... a6 {[%clk 0:02:53.9]} 6. Bg5 {[%clk 0:02:44.8]} 6... Nbd7 {[%clk
0:02:52.6]} 7. f4 {[%clk 0:02:44.6]} 7... Qc7 {[%clk 0:02:50.3]} 8. Qf3 {[%clk
0:02:43.7]} 8... h6 {[%clk 0:02:49]} 9. Bh4 {[%clk 0:02:41.9]} 9... g5 {[%clk
0:02:45.9]} 10. fxg5 {[%clk 0:02:38.3]} 10... hxg5 {[%clk 0:02:46.8]} 11. Bxg5
{[%clk 0:02:32.6]} 11... Qc5 {[%clk 0:02:45.1]} 12. Bxf6 {[%clk 0:02:30.2]}
12... Nxf6 {[%clk 0:02:41.4]} 13. Nf5 {[%clk 0:01:59.9]} 13... e6 {[%clk
0:02:32.5]} 14. Ne3 {[%clk 0:01:40.2]} 14... Nd7 {[%clk 0:02:26.6]} 15. O-O-O
{[%clk 0:01:27.3]} 15... Ne5 {[%clk 0:02:23.4]} 16. Qg3 {[%clk 0:01:09.4]} 16...
Bh6 {[%clk 0:02:15.5]} 17. Re1 {[%clk 0:01:08.5]} 17... b5 {[%clk 0:02:15.1]}
18. Kb1 {[%clk 0:01:04.7]} 18... Bb7 {[%clk 0:02:13.6]} 19. Ng4 {[%clk
0:01:01.5]} 19... Nxg4 {[%clk 0:02:11.2]} 20. Qxg4 {[%clk 0:01:00.6]} 20... Bd2
{[%clk 0:02:09.9]} 21. Rd1 {[%clk 0:00:53.1]} 21... Bxc3 {[%clk 0:02:08.6]} 22.
bxc3 {[%clk 0:00:52.1]} 22... Qxc3 {[%clk 0:02:09.1]} 23. Rxd6 {[%clk
0:00:50.7]} 23... Qb4+ {[%clk 0:02:08.3]} 0-1